fUSD/lending_fUSD_20240212
["ID","MTS","AMOUNT","RATE_DAILY","PERIOD"]
[313809788,1707733885357,-575.51,0.00024325,2]
[313809789,1707733885367,-500.0,0.00024325,2]
[313809790,1707733885376,-548.69,0.00024325,2]
[313809791,1707733885386,-537.39,0.00024325,2]
[313809792,1707733885396,-500.0,0.00024325,2]
[313809793,1707733885407,-1325.99,0.00024325,2]
[313809794,1707733885416,-500.0,0.00024325,2]
[313809795,1707733885426,-500.0,0.00024325,2]
[313809796,1707733885437,-563.03,0.00024325,2]
[313809797,1707733885447,-500.0,0.00024325,2]
[313809798,1707733885457,-500.0,0.00024325,2]
[313809799,1707733885467,-518.75,0.00024325,2]
[313809800,1707733885478,-500.0,0.00024325,2]
[313809801,1707733885487,-500.0,0.00024325,2]
[313809802,1707733885497,-557.97,0.00024325,2]
[313809803,1707733885507,-500.0,0.00024325,2]
[313809804,1707733885517,-500.0,0.00024325,2]
[313809805,1707733885527,-500.0,0.00024325,2]
[313809806,1707733885536,-732.69,0.00024325,2]
[313809807,1707733885546,-592.76,0.00024325,2]
[313809808,1707733885556,-642.64,0.00024325,2]
[313809809,1707733885566,-500.0,0.00024325,2]
[313809810,1707733885576,-500.0,0.00024325,2]
[313809811,1707733885587,-500.0,0.00024325,2]
[313809812,1707733885597,-536.26,0.00024325,2]
[313809813,1707733885606,-500.0,0.00024325,2]
[313809814,1707733885617,-500.0,0.00024325,2]
[313809815,1707733885627,-629.48,0.00024325,2]
[313809816,1707733885637,-517.86,0.00024325,2]
[313809817,1707733885646,-715.83,0.00024325,2]
[313809818,1707733885660,-500.0,0.00024325,2]
[313809819,1707733885670,-500.0,0.00024325,2]
[313809820,1707733885681,-655.78,0.00024325,2]
[313809821,1707733885691,-703.17,0.00024325,2]
[313809822,1707733885701,-679.0,0.00024325,2]
[313809823,1707733885711,-500.0,0.00024325,2]
[313809824,1707733885722,-555.32,0.00024325,2]
[313809825,1707733885732,-913.49,0.00024325,2]
[313809826,1707733885742,-500.0,0.00024325,2]
[313809827,1707733885752,-500.0,0.00024325,2]
[313809828,1707733885762,-608.92,0.00024325,2]
[313809829,1707733885773,-673.16,0.00024325,2]
[313809830,1707733885784,-500.0,0.00024325,2]
[313809831,1707733885794,-500.0,0.00024325,2]
[313809832,1707733885804,-500.0,0.00024325,2]
[313809833,1707733885814,-500.0,0.00024325,2]
[313809834,1707733885824,-500.0,0.00024325,2]
[313809835,1707733885835,-500.0,0.00024325,2]
[313809836,1707733885845,-500.0,0.00024325,2]
[313809837,1707733885855,-500.0,0.00024325,2]
[313809838,1707733885866,-668.92,0.00024325,2]
[313809839,1707733885876,-500.0,0.00024325,2]
[313809840,1707733885886,-500.0,0.00024325,2]
[313809841,1707733885897,-844.39,0.00024325,2]
[313809842,1707733885907,-1147.14,0.00024325,2]
[313809843,1707733885918,-755.97,0.00024325,2]
[313809844,1707733885927,-500.0,0.00024325,2]
[313809845,1707733885938,-500.0,0.00024325,2]
[313809846,1707733885947,-667.47,0.00024325,2]
[313809847,1707733885957,-605.66,0.00024325,2]
[313809848,1707733885968,-886.37,0.00024325,2]
[313809849,1707733885978,-500.0,0.00024325,2]
[313809850,1707733885988,-500.0,0.00024325,2]
[313809851,1707733885998,-642.83,0.00024325,2]
[313809852,1707733886008,-632.75,0.00024325,2]
[313809853,1707733886018,-500.0,0.00024325,2]
[313809854,1707733886028,-500.0,0.00024325,2]
[313809855,1707733886038,-929.38,0.00024325,2]
[313809856,1707733886048,-744.65,0.00024325,2]
[313809857,1707733886058,-500.0,0.00024325,2]
[313809858,1707733886068,-500.0,0.00024325,2]
[313809859,1707733886078,-308.48851474,0.00024325,2]
[313809860,1707733886089,-500.0,0.00024325,2]
[313809861,1707733886101,-500.0,0.00024325,2]
[313809862,1707733886112,-500.0,0.00024325,2]
[313809863,1707733886122,-500.0,0.00024325,2]
[313809864,1707733886132,-500.0,0.00024325,2]
[313809865,1707733886142,-819.75,0.00024325,2]
[313809866,1707733886152,-500.0,0.00024325,2]
[313809867,1707733886162,-500.0,0.00024325,2]
[313809868,1707733886173,-537.08,0.00024325,2]
[313809869,1707733886184,-500.0,0.00024325,2]
[313809870,1707733886194,-150.0,0.00024325,2]
[313809871,1707733886204,-500.0,0.00024325,2]
[313809872,1707733886213,-500.0,0.00024325,2]
[313809873,1707733886223,-10329.42,0.00024325,2]
[313809874,1707733886233,-500.0,0.00024325,2]
[313809875,1707733886243,-500.0,0.00024325,2]
[313809876,1707733886253,-580.36,0.00024325,2]
[313809877,1707733886264,-510.94,0.00024325,2]
[313809878,1707733886274,-500.0,0.00024325,2]
[313809879,1707733886284,-3105.06,0.00024325,2]
[313809880,1707733886294,-500.0,0.00024325,2]
[313809881,1707733886303,-773.66,0.00024325,2]
[313809882,1707733886313,-3271.15,0.00024325,2]
[313809883,1707733886324,-1844.55,0.00024325,2]
[313809884,1707733886336,-500.0,0.00024325,2]
[313809885,1707733886346,-940.32,0.00024325,2]
[313809886,1707733886355,-2970.51,0.00024325,2]
[313809887,1707733886366,-500.0,0.00024325,2]
[313809888,1707733886376,-539.87,0.00024325,2]
[313809889,1707733886387,-1834.77,0.00024325,2]
[313809890,1707733886397,-682.92,0.00024325,2]
[313809891,1707733886407,-500.0,0.00024325,2]
[313809892,1707733886417,-724.16,0.00024325,2]
[313809893,1707733886426,-500.0,0.00024325,2]
[313809894,1707733886436,-2718.91,0.00024325,2]
[313809895,1707733886446,-500.0,0.00024325,2]
[313809896,1707733886456,-629.24,0.00024325,2]
[313809897,1707733886466,-2450.63,0.00024325,2]
[313809898,1707733886476,-500.0,0.00024325,2]
[313809899,1707733886486,-787.17,0.00024325,2]
[313809900,1707733886496,-500.0,0.00024325,2]
[313809901,1707733886507,-615.21,0.00024325,2]
[313809902,1707733886517,-3019.8,0.00024325,2]
[313809903,1707733886527,-500.0,0.00024325,2]
[313809904,1707733886537,-500.0,0.00024325,2]
[313809905,1707733886547,-687.94,0.00024325,2]
[313809906,1707733886557,-535.89,0.00024325,2]
[313809907,1707733886567,-500.0,0.00024325,2]
[313809908,1707733886577,-3020.97,0.00024325,2]
[313809909,1707733886589,-500.84,0.00024325,2]
[313809910,1707733886599,-500.0,0.00024325,2]
[313809911,1707733886610,-745.25,0.00024325,2]
[313809912,1707733886620,-500.0,0.00024325,2]
[313809913,1707733886630,-1416.34,0.00024325,2]
[313809914,1707733886641,-630.19,0.00024325,2]
[313809915,1707733886651,-500.0,0.00024325,2]
[313809916,1707733886661,-618.63,0.00024325,2]
[313809917,1707733886671,-623.55082956,0.00024325,2]
[313809918,1707733886682,-1694.61,0.00024325,2]
[313809919,1707733886692,-581.03,0.00024325,2]
[313809920,1707733886703,-500.0,0.00024325,2]
[313809921,1707733886713,-1109.46,0.00024325,2]
[313809922,1707733886726,-500.0,0.00024325,2]
[313809923,1707733886737,-500.0,0.00024325,2]
[313809924,1707733886747,-312.71735388,0.00024325,2]
[313809925,1707733886758,-500.0,0.00024325,2]
[313809926,1707733886770,-5547.02,0.00024325,2]
[313809927,1707733886780,-500.0,0.00024325,2]
[313809928,1707733886791,-500.0,0.00024325,2]
[313809929,1707733886802,-500.0,0.00024325,2]
[313809930,1707733886813,-639.7,0.00024325,2]
[313809931,1707733886824,-10421.15,0.00024325,2]
[313809932,1707733886835,-500.0,0.00024325,2]
[313809933,1707733886846,-995.68,0.00024325,2]
[313809934,1707733886856,-500.0,0.00024325,2]
[313809935,1707733886866,-833.12,0.00024325,2]
[313809936,1707733886877,-500.0,0.00024325,2]
[313809937,1707733886888,-500.0,0.00024325,2]
[313809938,1707733886898,-2262.56,0.00024325,2]
[313809939,1707733886909,-563.82,0.00024325,2]
[313809940,1707733886920,-588.41,0.00024325,2]
[313809941,1707733886930,-500.0,0.00024325,2]
[313809942,1707733886941,-500.0,0.00024325,2]
[313809943,1707733886951,-1609.22,0.00024325,2]
[313809944,1707733886962,-500.0,0.00024325,2]
[313809945,1707733886972,-807.99,0.00024325,2]
[313809946,1707733886983,-500.0,0.00024325,2]
[313809947,1707733886994,-500.0,0.00024325,2]
[313809948,1707733887005,-519.62,0.00024325,2]
[313809949,1707733887015,-1981.21,0.00024325,2]
[313809950,1707733887025,-500.0,0.00024325,2]
[313809951,1707733887035,-797.72,0.00024325,2]
[313809952,1707733887045,-500.0,0.00024325,2]
[313809953,1707733887055,-671.69,0.00024325,2]
[313809954,1707733887066,-500.0,0.00024325,2]
[313809955,1707733887076,-815.55,0.00024325,2]
[313809956,1707733887086,-729.69,0.00024325,2]
[313809957,1707733887096,-2389.73,0.00024325,2]
[313809958,1707733887107,-718.0,0.00024325,2]
[313809959,1707733887119,-500.0,0.00024325,2]
[313809960,1707733887129,-664.45,0.00024325,2]
[313809961,1707733887139,-788.41,0.00024325,2]
[313809962,1707733887150,-609.83,0.00024325,2]
[313809963,1707733887161,-1199.43,0.00024325,2]
[313809964,1707733887171,-500.0,0.00024325,2]
[313809965,1707733887182,-500.0,0.00024325,2]
[313809966,1707733887193,-617.79,0.00024325,2]
[313809967,1707733887203,-500.0,0.00024325,2]
[313809968,1707733887213,-534.74,0.00024325,2]
[313809969,1707733887222,-13152.32,0.00024325,2]
[313809970,1707733887233,-500.0,0.00024325,2]
[313809971,1707733887243,-627.06,0.00024325,2]
[313809972,1707733887253,-794.39,0.00024325,2]
[313809973,1707733887263,-5987.72,0.00024325,2]
[313809974,1707733887274,-500.0,0.00024325,2]
[313809975,1707733887284,-500.0,0.00024325,2]
[313809976,1707733887294,-500.0,0.00024325,2]
[313809977,1707733887305,-500.0,0.00024326,2]
[313809978,1707733887315,-500.0,0.00024326,2]
[313809979,1707733887325,-500.0,0.00024326,2]
[313809980,1707733887336,-500.0,0.00024326,2]
[313809981,1707733887345,-500.0,0.00024326,2]
[313809982,1707733887355,-500.0,0.00024326,2]
[313809983,1707733887365,-500.0,0.00024326,2]
[313809984,1707733887375,-500.0,0.00024326,2]
[313809985,1707733887385,-500.0,0.00024326,2]
[313809986,1707733887395,-580.7,0.00024326,2]
[313809987,1707733887405,-500.0,0.00024326,2]
[313809988,1707733887415,-560.16,0.00024326,2]
[313809989,1707733887424,-500.0,0.00024326,2]
[313809990,1707733887434,-500.0,0.00024326,2]
[313809991,1707733887445,-500.0,0.00024326,2]
[313809992,1707733887454,-500.0,0.00024326,2]
[313809993,1707733887464,-500.0,0.00024326,2]
[313809994,1707733887474,-502.1,0.00024326,2]
[313809995,1707733887485,-500.0,0.00024326,2]
[313809996,1707733887495,-7495.41,0.00024384,2]
[313809997,1707733887505,-680.0,0.00024415,2]
[313809998,1707733887515,-4757.85269042,0.00024444,2]
[313809999,1707733887525,-1707.97579192,0.00024538,2]
[313810000,1707733887535,-500.0,0.00024598,2]
[313810001,1707733887545,-500.0,0.00024598,2]
[313810002,1707733887555,-500.0,0.00024598,2]
[313810003,1707733887565,-487.53444573,0.00024598,2]
[313810004,1707733887575,-500.0,0.00024598,2]
[313810005,1707733887586,-500.0,0.00024598,2]
[313810006,1707733887596,-601.14,0.00024598,2]
[313810007,1707733887607,-500.0,0.00024598,2]
[313810008,1707733887850,-500.0,0.00024598,2]
[313810009,1707733887860,-500.0,0.00024598,2]
[313810010,1707733887870,-500.0,0.00024598,2]
[313810011,1707733887879,-500.0,0.00024598,2]
[313810012,1707733887889,-500.0,0.00024598,2]
[313810013,1707733887898,-296.89453018,0.00024598,2]
[313810014,1707733887908,-500.0,0.00024598,2]
[313810015,1707733887918,-500.0,0.00024598,2]
[313810016,1707733887927,-500.0,0.00024598,2]
[313810017,1707733887937,-500.0,0.00024598,2]
[313810018,1707733887946,-500.0,0.00024598,2]
[313810019,1707733887955,-500.0,0.00024598,2]
[313810020,1707733887966,-473.0110296,0.00024598,2]
[313810021,1707733887975,-490.94028414,0.00024598,2]
[313810022,1707733887985,-500.0,0.00024598,2]
[313810023,1707733887995,-500.0,0.00024598,2]
[313810024,1707733888005,-500.0,0.00024598,2]
[313810025,1707733888014,-500.0,0.00024598,2]
[313810026,1707733888023,-500.0,0.00024598,2]
[313810027,1707733888033,-500.0,0.00024598,2]
[313810028,1707733888042,-500.0,0.00024598,2]
[313810029,1707733888052,-500.0,0.00024598,2]
[313810030,1707733888061,-500.0,0.00024598,2]
[313810031,1707733888071,-850.96,0.00024598,2]
[313810032,1707733888080,-350.32768146,0.00024598,2]
[313810033,1707733888090,-2929.74,0.00024598,2]
[313810034,1707733888100,-500.0,0.00024598,2]
[313810035,1707733888115,-1465.24,0.00024598,2]
[313810036,1707733888124,-2746.39,0.00024598,2]
[313810037,1707733888133,-3120.44,0.00024598,2]
[313810038,1707733888143,-1968.61,0.00024598,2]
[313810039,1707733888152,-500.0,0.00024598,2]
[313810040,1707733888161,-1245.93,0.00024598,2]
[313810041,1707733888171,-8220.4,0.00024598,2]
[313810042,1707733888182,-834.79,0.00024598,2]
[313810043,1707733888192,-500.0,0.00024598,2]
[313810044,1707733888202,-4043.08,0.00024598,2]
[313810045,1707733888212,-4209.02,0.00024598,2]
[313810046,1707733888221,-500.0,0.00024598,2]
[313810047,1707733888231,-3622.67,0.00024598,2]
[313810048,1707733888240,-577.54666181,0.00024598,2]
[313810049,1707733888250,-30584.48,0.00024598,2]
[313810050,1707733888259,-500.0,0.00024598,2]
[313810051,1707733888268,-500.0,0.00024598,2]
[313810052,1707733888279,-2489.84,0.00024598,2]
[313810053,1707733888288,-500.0,0.00024598,2]
[313810054,1707733888298,-658.01,0.00024598,2]
[313810055,1707733888308,-807.65,0.00024598,2]
[313810056,1707733888317,-500.0,0.00024598,2]
[313810057,1707733888326,-176.26,0.00024598,2]
[313810058,1707733888337,-500.0,0.00024598,2]
[313810059,1707733888346,-670.96,0.00024598,2]
[313810060,1707733888356,-500.0,0.00024598,2]
[313810061,1707733888366,-592.04,0.00024598,2]
[313810062,1707733888375,-500.0,0.00024598,2]
[313810063,1707733888385,-500.0,0.00024598,2]
[313810064,1707733888394,-500.0,0.00024598,2]
[313810065,1707733888404,-550.02,0.00024598,2]
[313810066,1707733888414,-5289.57,0.00024598,2]
[313810067,1707733888423,-654.37,0.00024598,2]
[313810068,1707733888432,-500.0,0.00024598,2]
[313810069,1707733888442,-876.87,0.00024598,2]
[313810070,1707733888451,-500.0,0.00024598,2]
[313810071,1707733888460,-551.44,0.00024598,2]
[313810072,1707733888470,-2205.41,0.00024598,2]
[313810073,1707733888480,-650.89,0.00024598,2]
[313810074,1707733888490,-4539.55,0.00024598,2]
[313810075,1707733888499,-2620.05,0.00024598,2]
[313810076,1707733888509,-806.86,0.00024598,2]
[313810077,1707733888518,-625.2,0.00024598,2]
[313810078,1707733888527,-10402.09,0.00024598,2]
[313810079,1707733888536,-1376.01,0.00024598,2]
[313810080,1707733888546,-1175.96,0.00024598,2]
[313810081,1707733888556,-500.0,0.00024598,2]
[313810082,1707733888565,-529.62,0.00024598,2]
[313810083,1707733888575,-829.4,0.00024598,2]
[313810084,1707733888586,-1891.45,0.00024598,2]
[313810085,1707733888596,-2658.88,0.00024598,2]
[313810086,1707733888606,-3181.3,0.00024598,2]
[313810087,1707733888615,-500.0,0.00024598,2]
[313810088,1707733888624,-1134.53,0.00024598,2]
[313810089,1707733888634,-500.0,0.00024598,2]
[313810090,1707733888643,-1360.04,0.00024598,2]
[313810091,1707733888653,-1409.13,0.00024598,2]
[313810092,1707733888662,-15681.69,0.00024598,2]
[313810093,1707733888672,-891.67,0.00024598,2]
[313810094,1707733888681,-656.74,0.00024598,2]
[313810095,1707733888690,-500.0,0.00024598,2]
[313810096,1707733888700,-500.0,0.00024598,2]
[313810097,1707733888709,-1797.29,0.00024598,2]
[313810098,1707733888718,-500.0,0.00024598,2]
[313810099,1707733888728,-5201.79,0.00024598,2]
[313810100,1707733888738,-2360.39,0.00024598,2]
[313810101,1707733888748,-500.0,0.00024598,2]
[313810102,1707733888758,-500.0,0.00024598,2]
[313810103,1707733888767,-2326.7,0.00024598,2]
[313810104,1707733888777,-500.0,0.00024598,2]
[313810105,1707733888787,-559.82,0.00024598,2]
[313810106,1707733888796,-500.0,0.00024598,2]
[313810107,1707733888807,-3297.6,0.00024598,2]
[313810108,1707733888816,-1593.69,0.00024598,2]
[313810109,1707733888825,-4294.35,0.00024598,2]
[313810110,1707733888835,-500.0,0.00024598,2]
[313810111,1707733888845,-532.5,0.00024598,2]
[313810112,1707733888855,-7674.53,0.00024598,2]
[313810113,1707733888865,-500.0,0.00024598,2]
[313810114,1707733888874,-1849.0,0.00024598,2]
[313810115,1707733888884,-500.0,0.00024598,2]
[313810116,1707733888894,-554.6,0.00024598,2]
[313810117,1707733888903,-4590.03,0.00024598,2]
[313810118,1707733888913,-500.0,0.00024598,2]
[313810119,1707733888923,-635.01,0.00024598,2]
[313810120,1707733888932,-500.0,0.00024598,2]
[313810121,1707733888941,-3517.53,0.00024598,2]
[313810122,1707733888951,-3960.55,0.00024598,2]
[313810123,1707733888962,-7666.46,0.00024598,2]
[313810124,1707733888971,-487.60489409,0.00024598,2]
[313810125,1707733888981,-500.0,0.00024598,2]
[313810126,1707733888990,-2656.74,0.00024598,2]
[313810127,1707733889000,-500.0,0.00024598,2]
[313810128,1707733889009,-1202.46,0.00024598,2]
[313810129,1707733889019,-886.56,0.00024598,2]
[313810130,1707733889028,-2276.55,0.00024598,2]
[313810131,1707733889037,-1511.64,0.00024598,2]
[313810132,1707733889047,-553.24,0.00024598,2]
[313810133,1707733889056,-649.19,0.00024598,2]
[313810134,1707733889066,-597.39,0.00024599,2]
[313810135,1707733889075,-500.0,0.00024599,2]
[313810136,1707733889084,-223.94881711,0.00024599,2]
[313810137,1707733889094,-500.0,0.00024599,2]
[313810138,1707733889105,-500.0,0.00024599,2]
[313810139,1707733889117,-629.53,0.00024599,2]
[313810140,1707733889126,-600.84,0.00024599,2]
[313810141,1707733889135,-500.0,0.00024599,2]
[313810142,1707733889144,-906.41,0.00024599,2]
[313810143,1707733889154,-575.51,0.00024599,2]
[313810144,1707733889163,-500.0,0.00024599,2]
[313810145,1707733889172,-548.69,0.00024599,2]
[313810146,1707733889181,-537.39,0.00024599,2]
[313810147,1707733889191,-500.0,0.00024599,2]
[313810148,1707733889201,-1325.99,0.00024599,2]
[313810149,1707733889211,-500.0,0.00024599,2]
[313810150,1707733889220,-500.0,0.00024599,2]
[313810151,1707733889229,-563.03,0.00024599,2]
[313810152,1707733889239,-500.0,0.00024599,2]
[313810153,1707733889249,-500.0,0.00024599,2]
[313810154,1707733889258,-518.75,0.00024599,2]
[313810155,1707733889268,-500.0,0.00024599,2]
[313810156,1707733889279,-557.97,0.00024599,2]
[313810157,1707733889288,-500.0,0.00024599,2]
[313810158,1707733889298,-500.0,0.00024599,2]
[313810159,1707733889307,-500.0,0.00024599,2]
[313810160,1707733889316,-500.0,0.00024599,2]
[313810161,1707733889326,-732.69,0.00024599,2]
[313810162,1707733889336,-592.76,0.00024599,2]
[313810163,1707733889346,-642.64,0.00024599,2]
[313810164,1707733889354,-500.0,0.00024599,2]
[313810165,1707733889363,-500.0,0.00024599,2]
[313810166,1707733889373,-500.0,0.00024599,2]
[313810167,1707733889382,-536.26,0.00024599,2]
[313810168,1707733889392,-500.0,0.00024599,2]
[313810169,1707733889401,-500.0,0.00024599,2]
[313810170,1707733889410,-629.48,0.00024599,2]
[313810171,1707733889420,-517.86,0.00024599,2]
[313810172,1707733889429,-715.83,0.00024599,2]
[313810173,1707733889438,-500.0,0.00024599,2]
[313810174,1707733889448,-500.0,0.00024599,2]
[313810175,1707733889457,-655.78,0.00024599,2]
[313810176,1707733889467,-703.17,0.00024599,2]
[313810177,1707733889476,-679.0,0.00024599,2]
[313810178,1707733889486,-500.0,0.00024599,2]
[313810179,1707733889495,-555.32,0.00024599,2]
[313810180,1707733889505,-913.49,0.00024599,2]
[313810181,1707733889514,-589.15275428,0.00024599,2]
[313810182,1707733889524,-500.0,0.00024599,2]
[313810183,1707733889533,-608.92,0.00024599,2]
[313810184,1707733889542,-673.16,0.00024599,2]
[313810185,1707733889551,-500.0,0.00024599,2]
[313810186,1707733889560,-500.0,0.00024599,2]
[313810187,1707733889570,-500.0,0.00024599,2]
[313810188,1707733889579,-500.0,0.00024599,2]
[313810189,1707733889589,-500.0,0.00024599,2]
[313810190,1707733889598,-500.0,0.00024599,2]
[313810191,1707733889608,-500.0,0.00024599,2]
[313810192,1707733889618,-500.0,0.00024599,2]
[313810193,1707733889627,-668.92,0.00024599,2]
[313810194,1707733889636,-171.44367994,0.00024599,2]
[313810195,1707733889646,-500.0,0.00024599,2]
[313810196,1707733889655,-844.39,0.00024599,2]
[313810197,1707733889664,-1147.14,0.00024599,2]
[313810198,1707733889674,-755.97,0.00024599,2]
[313810199,1707733889684,-500.0,0.00024599,2]
[313810200,1707733889694,-500.0,0.00024599,2]
[313810201,1707733889704,-667.47,0.00024599,2]
[313810202,1707733889714,-605.66,0.00024599,2]
[313810203,1707733889723,-886.37,0.00024599,2]
[313810204,1707733889732,-500.0,0.00024599,2]
[313810205,1707733889742,-500.0,0.00024599,2]
[313810206,1707733889751,-642.83,0.00024599,2]
[313810207,1707733889761,-632.75,0.00024599,2]
[313810208,1707733889771,-500.0,0.00024599,2]
[313810209,1707733889780,-500.0,0.00024599,2]
[313810210,1707733889790,-929.38,0.00024599,2]
[313810211,1707733889799,-744.65,0.00024599,2]
[313810212,1707733889810,-500.0,0.00024599,2]
[313810213,1707733889819,-500.0,0.00024599,2]
[313810214,1707733889828,-500.0,0.00024599,2]
[313810215,1707733889838,-500.0,0.00024599,2]
[313810216,1707733889848,-500.0,0.00024599,2]
[313810217,1707733889857,-500.0,0.00024599,2]
[313810218,1707733889867,-500.0,0.00024599,2]
[313810219,1707733889876,-819.75,0.00024599,2]
[313810220,1707733889885,-500.0,0.00024599,2]
[313810221,1707733889895,-473.06409421,0.00024599,2]
[313810222,1707733889904,-537.08,0.00024599,2]
[313810223,1707733889913,-500.0,0.00024599,2]
[313810224,1707733889923,-150.0,0.00024599,2]
[313810225,1707733889932,-500.0,0.00024599,2]
[313810226,1707733889941,-558.3,0.00024599,2]
[313810227,1707733889951,-10329.42,0.00024599,2]
[313810228,1707733889960,-500.0,0.00024599,2]
[313810229,1707733889969,-257.31,0.00024599,2]
[313810230,1707733889978,-580.36,0.00024599,2]
[313810231,1707733889988,-510.94,0.00024599,2]
[313810232,1707733889998,-500.0,0.00024599,2]
[313810233,1707733890008,-3105.06,0.00024599,2]
[313810234,1707733890018,-500.0,0.00024599,2]
[313810235,1707733890027,-773.66,0.00024599,2]
[313810236,1707733890036,-3271.15,0.00024599,2]
[313810237,1707733890045,-1844.55,0.00024599,2]
[313810238,1707733890055,-500.0,0.00024599,2]
[313810239,1707733890064,-940.32,0.00024599,2]
[313810240,1707733890074,-2970.51,0.00024599,2]
[313810241,1707733890084,-500.0,0.00024599,2]
[313810242,1707733890093,-539.87,0.00024599,2]
[313810243,1707733890166,-1834.77,0.00024599,2]
[313810244,1707733890175,-682.92,0.00024599,2]
[313810245,1707733890186,-618.28895902,0.00024599,2]
[313810246,1707733890196,-724.16,0.00024599,2]
[313810247,1707733890205,-500.0,0.00024599,2]
[313810248,1707733890214,-2718.91,0.00024599,2]
[313810249,1707733890223,-500.0,0.00024599,2]
[313810250,1707733890232,-629.24,0.00024599,2]
[313810251,1707733890241,-2450.63,0.00024599,2]
[313810252,1707733890251,-500.0,0.00024599,2]
[313810253,1707733890260,-787.17,0.00024599,2]
[313810254,1707733890270,-500.0,0.00024599,2]
[313810255,1707733890279,-3019.8,0.00024599,2]
[313810256,1707733890288,-500.0,0.00024599,2]
[313810257,1707733890297,-500.0,0.00024599,2]
[313810258,1707733890307,-687.94,0.00024599,2]
[313810259,1707733890315,-535.89,0.00024599,2]
[313810260,1707733890325,-500.0,0.00024599,2]
[313810261,1707733890334,-3020.97,0.00024599,2]
[313810262,1707733890343,-500.84,0.00024599,2]
[313810263,1707733890353,-500.0,0.00024599,2]
[313810264,1707733890361,-745.25,0.00024599,2]
[313810265,1707733890371,-500.0,0.00024599,2]
[313810266,1707733890380,-1416.34,0.00024599,2]
[313810267,1707733890389,-630.19,0.00024599,2]
[313810268,1707733890398,-500.0,0.00024599,2]
[313810269,1707733890408,-1694.61,0.00024599,2]
[313810270,1707733890418,-581.03,0.00024599,2]
[313810271,1707733890428,-618.63,0.00024599,2]
[313810272,1707733890438,-500.0,0.00024599,2]
[313810273,1707733890449,-1109.46,0.00024599,2]
[313810274,1707733890459,-500.0,0.00024599,2]
[313810275,1707733890470,-500.0,0.00024599,2]
[313810276,1707733890481,-500.0,0.00024599,2]
[313810277,1707733890492,-5547.02,0.00024599,2]
[313810278,1707733890503,-500.0,0.00024599,2]
[313810279,1707733890514,-500.0,0.00024599,2]
[313810280,1707733890525,-500.0,0.00024599,2]
[313810281,1707733890535,-639.7,0.00024599,2]
[313810282,1707733890546,-10421.15,0.00024599,2]
[313810283,1707733890556,-500.0,0.00024599,2]
[313810284,1707733890567,-995.68,0.00024599,2]
[313810285,1707733890577,-500.0,0.00024599,2]
[313810286,1707733890588,-833.12,0.00024599,2]
[313810287,1707733890597,-500.0,0.00024599,2]